[Event "Titled Tuesday Blitz May 30 Early 2023"]
[White "Aradhya, Garg"]
[Black "Pranav, V"]
[WhiteFideId "25006746"]
[BlackFideId "25060783"]
[WhiteElo "2263"]
[BlackElo "2515"]
[Result "0-1"]
[Round "04"]
[TimeControl "180+2"]
[Date "2023.05.30"]
[WhiteClock "0:00:02"]
[BlackClock "0:00:06"]

1. d4 {[%clk 0:02:58]}  Nf6 {[%clk 0:03:00]} 2. c4 {[%clk 0:02:58]}  g6 {[%clk 0:03:01]} 3. Nf3 {[%clk 0:02:58]}  Bg7 {[%clk 0:03:01]} 4. g3 {[%clk 0:02:59]}  O-O {[%clk 0:03:01]} 5. Bg2 {[%clk 0:02:59]}  d6 {[%clk 0:03:01]} 6. Nc3 {[%clk 0:03:00]}  Nbd7 {[%clk 0:03:00]} 7. O-O {[%clk 0:02:59]}  e5 {[%clk 0:03:01]} 8. e4 {[%clk 0:02:56]}  Re8 {[%clk 0:03:00]} 9. h3 {[%clk 0:02:55]}  a6 {[%clk 0:02:57]} 10. Qc2 {[%clk 0:02:53]}  c6 {[%clk 0:02:55]} 11. Rd1 {[%clk 0:02:52]}  Qc7 {[%clk 0:02:53]} 12. a4 {[%clk 0:02:50]}  a5 {[%clk 0:02:52]} 13. Be3 {[%clk 0:02:50]}  exd4 {[%clk 0:02:50]} 14. Nxd4 {[%clk 0:02:45]}  Nc5 {[%clk 0:02:50]} 15. Ndb5 {[%clk 0:02:46]}  cxb5 {[%clk 0:02:35]} 16. Nxb5 {[%clk 0:02:47]}  Qe7 {[%clk 0:02:07]} 17. Nxd6 {[%clk 0:02:45]}  Na6 {[%clk 0:02:02]} 18. Nxe8 {[%clk 0:02:44]}  Nxe8 {[%clk 0:02:03]} 19. Bd4 {[%clk 0:02:33]}  Be6 {[%clk 0:01:54]} 20. Bxg7 {[%clk 0:02:32]}  Nxg7 {[%clk 0:01:52]} 21. Rd2 {[%clk 0:02:23]}  Rc8 {[%clk 0:01:48]} 22. b3 {[%clk 0:02:23]}  Bd7 {[%clk 0:01:36]} 23. Rad1 {[%clk 0:02:12]}  Bc6 {[%clk 0:01:34]} 24. Qc3 {[%clk 0:02:12]}  Nb4 {[%clk 0:01:33]} 25. e5 {[%clk 0:02:13]}  Ne6 {[%clk 0:01:25]} 26. Rd6 {[%clk 0:01:55]}  Qg5 {[%clk 0:01:14]} 27. Bxc6 {[%clk 0:01:10]}  Nxc6 {[%clk 0:01:15]} 28. Kh2 {[%clk 0:01:10]}  Qxe5 {[%clk 0:01:07]} 29. Qxe5 {[%clk 0:01:09]}  Nxe5 {[%clk 0:01:08]} 30. Rb6 {[%clk 0:01:07]}  Rc7 {[%clk 0:01:03]} 31. Rd5 {[%clk 0:01:06]}  Nc6 {[%clk 0:01:02]} 32. g4 {[%clk 0:00:58]}  Kf8 {[%clk 0:01:00]} 33. Rdb5 {[%clk 0:00:56]}  Ned8 {[%clk 0:00:57]} 34. Rd5 {[%clk 0:00:53]}  Re7 {[%clk 0:00:55]} 35. Rd2 {[%clk 0:00:48]}  Ne6 {[%clk 0:00:51]} 36. Kg3 {[%clk 0:00:23]}  Nc5 {[%clk 0:00:37]} 37. Rd5 {[%clk 0:00:21]}  Ne4+ {[%clk 0:00:29]} 38. Kg2 {[%clk 0:00:22]}  Nc3 {[%clk 0:00:20]} 39. Rd3 {[%clk 0:00:22]}  Ne2 {[%clk 0:00:20]} 40. Re3 {[%clk 0:00:18]}  Nf4+ {[%clk 0:00:17]} 41. Kg3 {[%clk 0:00:18]}  Ne6 {[%clk 0:00:18]} 42. f4 {[%clk 0:00:18]}  Rd7 {[%clk 0:00:18]} 43. f5 {[%clk 0:00:18]}  gxf5 {[%clk 0:00:18]} 44. gxf5 {[%clk 0:00:19]}  Ned4 {[%clk 0:00:15]} 45. Kf4 {[%clk 0:00:18]}  Kg7 {[%clk 0:00:16]} 46. Rd3 {[%clk 0:00:08]}  Kf6 {[%clk 0:00:14]} 47. Rb5 {[%clk 0:00:08]}  Ne2+ {[%clk 0:00:07]} 48. Ke3 {[%clk 0:00:08]}  Re7+ {[%clk 0:00:07]} 49. Kd2 {[%clk 0:00:08]}  Ned4 {[%clk 0:00:05]} 50. Rd5 {[%clk 0:00:07]}  Nxf5 {[%clk 0:00:03]} 51. Rf3 {[%clk 0:00:07]}  Ne5 {[%clk 0:00:03]} 52. Rf1 {[%clk 0:00:08]}  Re6 {[%clk 0:00:03]} 53. Rxa5 {[%clk 0:00:07]}  b6 {[%clk 0:00:03]} 54. Rd5 {[%clk 0:00:07]}  Rc6 {[%clk 0:00:03]} 55. a5 {[%clk 0:00:07]}  bxa5 {[%clk 0:00:03]} 56. Rxa5 {[%clk 0:00:07]}  Ke6 {[%clk 0:00:03]} 57. Re1 {[%clk 0:00:05]}  f6 {[%clk 0:00:04]} 58. Kc3 {[%clk 0:00:05]}  Nd6 {[%clk 0:00:02]} 59. Rea1 {[%clk 0:00:05]}  Rc8 {[%clk 0:00:01]} 60. Ra6 {[%clk 0:00:05]}  Rd8 {[%clk 0:00:01]} 61. Rb6 {[%clk 0:00:05]}  Nf7 {[%clk 0:00:01]} 62. Re1+ {[%clk 0:00:04]}  Kf5 {[%clk 0:00:01]} 63. Rd1 {[%clk 0:00:04]}  Ne4+ {[%clk 0:00:01]} 64. Kc2 {[%clk 0:00:05]}  Ra8 {[%clk 0:00:02]} 65. Rb5+ {[%clk 0:00:05]}  Kf4 {[%clk 0:00:02]} 66. Kb2 {[%clk 0:00:05]}  Ne5 {[%clk 0:00:02]} 67. Rbd5 {[%clk 0:00:06]}  Nf3 {[%clk 0:00:02]} 68. Rf1 {[%clk 0:00:06]}  Ke3 {[%clk 0:00:02]} 69. Rfd1 {[%clk 0:00:06]}  Ne5 {[%clk 0:00:01]} 70. Ra1 {[%clk 0:00:06]}  Rxa1 {[%clk 0:00:01]} 71. Kxa1 {[%clk 0:00:07]}  f5 {[%clk 0:00:02]} 72. Kb2 {[%clk 0:00:07]}  Nd3+ {[%clk 0:00:02]} 73. Kb1 {[%clk 0:00:06]}  f4 {[%clk 0:00:02]} 74. Rf5 {[%clk 0:00:05]}  f3 {[%clk 0:00:03]} 75. Kc2 {[%clk 0:00:05]}  f2 {[%clk 0:00:03]} 76. c5 {[%clk 0:00:04]}  Nf4 {[%clk 0:00:03]} 77. c6 {[%clk 0:00:02]}  f1=Q {[%clk 0:00:03]} 78. c7 {[%clk 0:00:02]}  Qd3+ {[%clk 0:00:04]} 79. Kb2 {[%clk 0:00:02]}  Qd2+ {[%clk 0:00:04]} 80. Ka3 {[%clk 0:00:02]}  Qd6+ {[%clk 0:00:05]} 81. Kb2 {[%clk 0:00:02]}  Qxc7 {[%clk 0:00:05]} 82. Ka2 {[%clk 0:00:01]}  Nd3 {[%clk 0:00:06]} 83. Ka3 {[%clk 0:00:02]}  Qa7+ {[%clk 0:00:06]} 84. Ra5 {[%clk 0:00:02]}  Qxa5# {[%clk 0:00:06]} 0-1


[Site "https://www.chess.com"]

[Event "Titled Tuesday Blitz May 30 Early 2023"]
[White "Pranesh M"]
[Black "Bartel, Michal"]
[WhiteFideId "35028600"]
[BlackFideId "1119257"]
[WhiteElo "2437"]
[BlackElo "2282"]
[Result "1-0"]
[Round "04"]
[TimeControl "180+2"]
[Date "2023.05.30"]
[WhiteClock "0:01:49"]
[BlackClock "0:00:49"]

1. e4 {[%clk 0:03:00]}  e5 {[%clk 0:03:00]} 2. Nf3 {[%clk 0:02:59]}  Nc6 {[%clk 0:03:00]} 3. Bc4 {[%clk 0:03:00]}  Be7 {[%clk 0:02:59]} 4. d4 {[%clk 0:03:00]}  exd4 {[%clk 0:02:57]} 5. Nxd4 {[%clk 0:03:01]}  d6 {[%clk 0:02:43]} 6. Nc3 {[%clk 0:03:00]}  Nf6 {[%clk 0:02:41]} 7. O-O {[%clk 0:03:00]}  O-O {[%clk 0:02:41]} 8. h3 {[%clk 0:03:00]}  Re8 {[%clk 0:02:40]} 9. Re1 {[%clk 0:03:01]}  h6 {[%clk 0:02:38]} 10. Bf4 {[%clk 0:03:00]}  Bf8 {[%clk 0:02:33]} 11. Nxc6 {[%clk 0:02:56]}  bxc6 {[%clk 0:02:29]} 12. e5 {[%clk 0:02:56]}  dxe5 {[%clk 0:02:15]} 13. Qxd8 {[%clk 0:02:57]}  Rxd8 {[%clk 0:02:15]} 14. Bxe5 {[%clk 0:02:57]}  Ne8 {[%clk 0:02:08]} 15. Rad1 {[%clk 0:02:49]}  Bf5 {[%clk 0:01:57]} 16. Rxd8 {[%clk 0:02:43]}  Rxd8 {[%clk 0:01:58]} 17. Re2 {[%clk 0:02:44]}  Bc5 {[%clk 0:01:45]} 18. Kh2 {[%clk 0:02:18]}  Kf8 {[%clk 0:01:41]} 19. Bf4 {[%clk 0:02:13]}  Nd6 {[%clk 0:01:36]} 20. Bb3 {[%clk 0:02:11]}  Bd4 {[%clk 0:01:29]} 21. Be5 {[%clk 0:02:03]}  Nb5 {[%clk 0:01:08]} 22. Nxb5 {[%clk 0:01:56]}  cxb5 {[%clk 0:01:08]} 23. Bxc7 {[%clk 0:01:56]}  Rd7 {[%clk 0:01:07]} 24. Be5 {[%clk 0:01:55]}  Bc5 {[%clk 0:00:57]} 25. Bf4 {[%clk 0:01:51]}  a5 {[%clk 0:00:49]} 26. Re5 {[%clk 0:01:49]} 1-0


[Site "https://www.chess.com"]

[Event "Titled Tuesday Blitz May 30 Early 2023"]
[White "Steinberg, Nitzan"]
[Black "Miranda, Rafael"]
[WhiteFideId "2801795"]
[BlackFideId "130990"]
[WhiteElo "2486"]
[BlackElo "2204"]
[Result "1-0"]
[Round "04"]
[TimeControl "180+2"]
[Date "2023.05.30"]
[WhiteClock "0:00:34"]
[BlackClock "0:00:15"]

1. Nf3 {[%clk 0:03:00]}  Nf6 {[%clk 0:02:59]} 2. g3 {[%clk 0:03:01]}  g6 {[%clk 0:02:59]} 3. Bg2 {[%clk 0:03:02]}  Bg7 {[%clk 0:03:00]} 4. O-O {[%clk 0:03:03]}  O-O {[%clk 0:03:00]} 5. d3 {[%clk 0:03:02]}  d6 {[%clk 0:03:00]} 6. e4 {[%clk 0:03:02]}  c5 {[%clk 0:03:00]} 7. Re1 {[%clk 0:03:02]}  Nc6 {[%clk 0:03:00]} 8. Nbd2 {[%clk 0:03:01]}  e6 {[%clk 0:02:44]} 9. Nf1 {[%clk 0:02:59]}  Qc7 {[%clk 0:02:32]} 10. h4 {[%clk 0:02:55]}  b6 {[%clk 0:02:32]} 11. Bf4 {[%clk 0:02:46]}  e5 {[%clk 0:02:24]} 12. Bg5 {[%clk 0:02:46]}  Nd4 {[%clk 0:02:24]} 13. Ne3 {[%clk 0:02:45]}  Be6 {[%clk 0:02:18]} 14. c3 {[%clk 0:02:42]}  Nxf3+ {[%clk 0:02:14]} 15. Qxf3 {[%clk 0:02:43]}  Nd7 {[%clk 0:02:14]} 16. Nf5 {[%clk 0:02:32]}  gxf5 {[%clk 0:01:38]} 17. exf5 {[%clk 0:02:32]}  e4 {[%clk 0:01:38]} 18. dxe4 {[%clk 0:01:30]}  Ne5 {[%clk 0:01:35]} 19. Qd1 {[%clk 0:01:26]}  f6 {[%clk 0:01:30]} 20. fxe6 {[%clk 0:01:23]}  fxg5 {[%clk 0:01:30]} 21. hxg5 {[%clk 0:01:24]}  Qe7 {[%clk 0:01:27]} 22. f4 {[%clk 0:01:24]}  Qxe6 {[%clk 0:01:28]} 23. fxe5 {[%clk 0:01:20]}  Bxe5 {[%clk 0:01:28]} 24. Qh5 {[%clk 0:01:14]}  Bxg3 {[%clk 0:01:18]} 25. Rf1 {[%clk 0:01:12]}  Be5 {[%clk 0:01:16]} 26. Rf5 {[%clk 0:01:07]}  Qg6 {[%clk 0:00:48]} 27. Qh4 {[%clk 0:01:07]}  Rae8 {[%clk 0:00:44]} 28. Raf1 {[%clk 0:01:06]}  d5 {[%clk 0:00:37]} 29. Qg4 {[%clk 0:00:48]}  dxe4 {[%clk 0:00:32]} 30. Bxe4 {[%clk 0:00:49]}  Qg7 {[%clk 0:00:30]} 31. Rxf8+ {[%clk 0:00:42]}  Rxf8 {[%clk 0:00:28]} 32. Qe6+ {[%clk 0:00:43]}  Rf7 {[%clk 0:00:24]} 33. Rxf7 {[%clk 0:00:38]}  Qxg5+ {[%clk 0:00:24]} 34. Bg2 {[%clk 0:00:35]}  Qc1+ {[%clk 0:00:15]} 35. Rf1+ {[%clk 0:00:34]} 1-0


[Site "https://www.chess.com"]

[Event "Titled Tuesday Blitz May 30 Early 2023"]
[White "Uzcategui Rodriguez, Alejandro"]
[Black "Kovalenko, Igor"]
[WhiteFideId "3903400"]
[BlackFideId "14117908"]
[WhiteElo "2252"]
[BlackElo "2574"]
[Result "1-0"]
[Round "04"]
[TimeControl "180+2"]
[Date "2023.05.30"]
[WhiteClock "0:00:45"]
[BlackClock "0:00:00"]

1. d4 {[%clk 0:03:00]}  Nf6 {[%clk 0:03:00]} 2. Nf3 {[%clk 0:03:00]}  e6 {[%clk 0:03:00]} 3. Bg5 {[%clk 0:02:59]}  d5 {[%clk 0:03:00]} 4. Nbd2 {[%clk 0:02:58]}  Nbd7 {[%clk 0:03:00]} 5. e3 {[%clk 0:02:58]}  Be7 {[%clk 0:03:00]} 6. Bd3 {[%clk 0:02:58]}  h6 {[%clk 0:03:00]} 7. Bh4 {[%clk 0:02:57]}  c5 {[%clk 0:03:00]} 8. c3 {[%clk 0:02:58]}  b6 {[%clk 0:03:00]} 9. Ne5 {[%clk 0:02:54]}  Bb7 {[%clk 0:03:00]} 10. f4 {[%clk 0:02:51]}  Nxe5 {[%clk 0:03:00]} 11. fxe5 {[%clk 0:02:51]}  Nd7 {[%clk 0:03:01]} 12. Bxe7 {[%clk 0:02:51]}  Qxe7 {[%clk 0:03:01]} 13. O-O {[%clk 0:02:48]}  O-O-O {[%clk 0:03:00]} 14. a4 {[%clk 0:02:37]}  f6 {[%clk 0:02:34]} 15. exf6 {[%clk 0:02:06]}  gxf6 {[%clk 0:02:35]} 16. a5 {[%clk 0:02:06]}  c4 {[%clk 0:02:25]} 17. Be2 {[%clk 0:02:03]}  b5 {[%clk 0:02:25]} 18. Bf3 {[%clk 0:01:57]}  a6 {[%clk 0:02:24]} 19. e4 {[%clk 0:01:57]}  e5 {[%clk 0:02:16]} 20. exd5 {[%clk 0:01:52]}  exd4 {[%clk 0:02:16]} 21. d6 {[%clk 0:01:19]}  Qe3+ {[%clk 0:02:10]} 22. Kh1 {[%clk 0:01:16]}  d3 {[%clk 0:02:10]} 23. Bxb7+ {[%clk 0:01:13]}  Kxb7 {[%clk 0:02:11]} 24. Re1 {[%clk 0:01:07]}  Qf4 {[%clk 0:02:08]} 25. Re4 {[%clk 0:01:00]}  Qxd6 {[%clk 0:02:07]} 26. Qf3 {[%clk 0:00:58]}  Kb8 {[%clk 0:02:07]} 27. Rae1 {[%clk 0:00:57]}  Ne5 {[%clk 0:02:07]} 28. Qf2 {[%clk 0:00:53]}  Qc7 {[%clk 0:02:05]} 29. Qxf6 {[%clk 0:00:51]}  Nd7 {[%clk 0:01:58]} 30. Qxa6 {[%clk 0:00:50]}  Qb7 {[%clk 0:01:51]} 31. Qd6+ {[%clk 0:00:49]}  Qc7 {[%clk 0:01:51]} 32. Qb4 {[%clk 0:00:47]}  Qc5 {[%clk 0:01:49]} 33. Rxc4 {[%clk 0:00:45]}  Qxb4 {[%clk 0:01:48]} 34. Rxb4 {[%clk 0:00:46]}  Ka7 {[%clk 0:00:00]} 35. Rxb5 {[%clk 0:00:45]} 1-0


[Site "https://www.chess.com"]

[Event "Titled Tuesday Blitz May 30 Early 2023"]
[White "Bortnyk, Olexandr"]
[Black "Iskusnyh, Sergei"]
[WhiteFideId "14120828"]
[BlackFideId "4120027"]
[WhiteElo "2734"]
[BlackElo "2492"]
[Result "1-0"]
[Round "04"]
[TimeControl "180+2"]
[Date "2023.05.30"]
[WhiteClock "0:01:38"]
[BlackClock "0:00:00"]

1. d4 {[%clk 0:03:00]}  d5 {[%clk 0:02:59]} 2. Nc3 {[%clk 0:03:01]}  Nf6 {[%clk 0:02:58]} 3. Bf4 {[%clk 0:03:02]}  c5 {[%clk 0:02:57]} 4. e4 {[%clk 0:03:02]}  Nxe4 {[%clk 0:02:54]} 5. Nxe4 {[%clk 0:03:02]}  dxe4 {[%clk 0:02:55]} 6. dxc5 {[%clk 0:03:03]}  Qa5+ {[%clk 0:02:53]} 7. c3 {[%clk 0:03:04]}  Qxc5 {[%clk 0:02:53]} 8. Qa4+ {[%clk 0:03:04]}  Bd7 {[%clk 0:02:49]} 9. Qxe4 {[%clk 0:03:05]}  Bc6 {[%clk 0:02:49]} 10. Qc2 {[%clk 0:03:06]}  e6 {[%clk 0:02:37]} 11. O-O-O {[%clk 0:03:06]}  Be7 {[%clk 0:02:36]} 12. Nf3 {[%clk 0:03:06]}  Nd7 {[%clk 0:02:34]} 13. Bd3 {[%clk 0:03:06]}  Qa5 {[%clk 0:02:23]} 14. Kb1 {[%clk 0:03:06]}  Nc5 {[%clk 0:02:20]} 15. b4 {[%clk 0:03:03]}  Qb6 {[%clk 0:02:12]} 16. Be3 {[%clk 0:03:03]}  Ba4 {[%clk 0:02:09]} 17. Qxa4+ {[%clk 0:03:01]}  Nxa4 {[%clk 0:02:07]} 18. Bxb6 {[%clk 0:03:02]}  axb6 {[%clk 0:01:36]} 19. Bb5+ {[%clk 0:03:03]}  Kf8 {[%clk 0:01:36]} 20. Kc2 {[%clk 0:03:03]}  Bf6 {[%clk 0:01:32]} 21. Nd4 {[%clk 0:03:01]}  g6 {[%clk 0:01:30]} 22. Kb3 {[%clk 0:03:01]}  Nxc3 {[%clk 0:01:24]} 23. Kxc3 {[%clk 0:03:02]}  Rxa2 {[%clk 0:01:24]} 24. Bc4 {[%clk 0:02:30]}  Rxf2 {[%clk 0:01:14]} 25. Rhf1 {[%clk 0:02:30]}  Rxf1 {[%clk 0:01:13]} 26. Rxf1 {[%clk 0:02:31]}  Kg7 {[%clk 0:01:09]} 27. Rd1 {[%clk 0:02:18]}  Rc8 {[%clk 0:01:05]} 28. b5 {[%clk 0:02:14]}  h5 {[%clk 0:00:56]} 29. h3 {[%clk 0:02:09]}  h4 {[%clk 0:00:56]} 30. Rd2 {[%clk 0:02:07]}  Rd8 {[%clk 0:00:37]} 31. Be2 {[%clk 0:02:07]}  Rd5 {[%clk 0:00:24]} 32. Bf3 {[%clk 0:02:06]}  Rxb5 {[%clk 0:00:23]} 33. Kc4 {[%clk 0:02:03]}  Rc5+ {[%clk 0:00:23]} 34. Kb3 {[%clk 0:02:03]}  Rc7 {[%clk 0:00:22]} 35. Nb5 {[%clk 0:02:03]}  Rc5 {[%clk 0:00:22]} 36. Nd6 {[%clk 0:02:03]}  Be5 {[%clk 0:00:18]} 37. Nxb7 {[%clk 0:02:01]}  Rc3+ {[%clk 0:00:18]} 38. Kb4 {[%clk 0:02:00]}  Re3 {[%clk 0:00:17]} 39. Rd7 {[%clk 0:02:00]}  Kf8 {[%clk 0:00:12]} 40. Bc6 {[%clk 0:01:56]}  g5 {[%clk 0:00:11]} 41. Nd8 {[%clk 0:01:55]}  Bc3+ {[%clk 0:00:09]} 42. Kc4 {[%clk 0:01:55]}  f5 {[%clk 0:00:07]} 43. Rf7+ {[%clk 0:01:45]}  Kg8 {[%clk 0:00:06]} 44. Bd7 {[%clk 0:01:46]}  g4 {[%clk 0:00:02]} 45. hxg4 {[%clk 0:01:44]}  fxg4 {[%clk 0:00:02]} 46. Rf4 {[%clk 0:01:45]}  Be5 {[%clk 0:00:01]} 47. Bxe6+ {[%clk 0:01:45]}  Kg7 {[%clk 0:00:02]} 48. Rxg4+ {[%clk 0:01:44]}  Kf6 {[%clk 0:00:02]} 49. Bd5 {[%clk 0:01:43]}  Rc3+ {[%clk 0:00:01]} 50. Kb4 {[%clk 0:01:43]}  Rc5 {[%clk 0:00:01]} 51. Bf3 {[%clk 0:01:40]}  Bd6 {[%clk 0:00:00]} 52. Nb7 {[%clk 0:01:38]} 1-0


[Site "https://www.chess.com"]

[Event "Titled Tuesday Blitz May 30 Early 2023"]
[White "brm72"]
[Black "Paravyan, David"]
[BlackFideId "4194985"]
[WhiteElo "2612"]
[BlackElo "2563"]
[Result "1/2-1/2"]
[Round "04"]
[TimeControl "180+2"]
[Date "2023.05.30"]
[WhiteClock "0:01:08"]
[BlackClock "0:00:35"]

1. d4 {[%clk 0:03:00]}  d5 {[%clk 0:02:59]} 2. c4 {[%clk 0:03:00]}  e6 {[%clk 0:02:59]} 3. Nf3 {[%clk 0:03:00]}  Nf6 {[%clk 0:03:00]} 4. Nc3 {[%clk 0:03:00]}  c5 {[%clk 0:03:00]} 5. cxd5 {[%clk 0:02:55]}  Nxd5 {[%clk 0:03:01]} 6. e4 {[%clk 0:02:55]}  Nxc3 {[%clk 0:03:01]} 7. bxc3 {[%clk 0:02:56]}  cxd4 {[%clk 0:03:02]} 8. cxd4 {[%clk 0:02:56]}  Bb4+ {[%clk 0:03:02]} 9. Bd2 {[%clk 0:02:57]}  Bxd2+ {[%clk 0:03:02]} 10. Qxd2 {[%clk 0:02:58]}  O-O {[%clk 0:03:03]} 11. Bc4 {[%clk 0:02:56]}  Nd7 {[%clk 0:03:03]} 12. O-O {[%clk 0:02:56]}  b6 {[%clk 0:03:04]} 13. Rfe1 {[%clk 0:02:55]}  Bb7 {[%clk 0:03:04]} 14. Rad1 {[%clk 0:02:55]}  Nf6 {[%clk 0:03:04]} 15. d5 {[%clk 0:02:45]}  exd5 {[%clk 0:03:05]} 16. exd5 {[%clk 0:02:45]}  Qd6 {[%clk 0:03:05]} 17. Nd4 {[%clk 0:02:29]}  g6 {[%clk 0:03:05]} 18. Qg5 {[%clk 0:02:15]}  Rae8 {[%clk 0:00:39]} 19. Nf5 {[%clk 0:01:40]}  Qb4 {[%clk 0:00:36]} 20. Nh6+ {[%clk 0:01:11]}  Kg7 {[%clk 0:00:34]} 21. Nf5+ {[%clk 0:01:09]}  Kg8 {[%clk 0:00:35]} 22. Nh6+ {[%clk 0:01:08]}  Kg7 {[%clk 0:00:35]} 23. Nf5+ {[%clk 0:01:08]}  Kg8 {[%clk 0:00:35]} 1/2-1/2


[Site "https://www.chess.com"]

[Event "Titled Tuesday Blitz May 30 Early 2023"]
[White "Lazavik, Denis"]
[Black "Colas, Joshua"]
[WhiteFideId "13515110"]
[BlackFideId "2044447"]
[WhiteElo "2560"]
[BlackElo "2347"]
[Result "1-0"]
[Round "04"]
[TimeControl "180+2"]
[Date "2023.05.30"]
[WhiteClock "0:00:17"]
[BlackClock "0:00:01"]

1. d4 {[%clk 0:03:00]}  d5 {[%clk 0:02:54]} 2. c4 {[%clk 0:03:01]}  e6 {[%clk 0:02:54]} 3. Nc3 {[%clk 0:03:01]}  a6 {[%clk 0:02:54]} 4. cxd5 {[%clk 0:03:00]}  exd5 {[%clk 0:02:55]} 5. Nf3 {[%clk 0:02:59]}  Nf6 {[%clk 0:02:55]} 6. Bg5 {[%clk 0:02:59]}  Be6 {[%clk 0:02:55]} 7. e3 {[%clk 0:03:00]}  Nbd7 {[%clk 0:02:51]} 8. Bd3 {[%clk 0:03:01]}  Bd6 {[%clk 0:02:51]} 9. O-O {[%clk 0:02:59]}  c6 {[%clk 0:02:52]} 10. Bf4 {[%clk 0:03:00]}  Qb8 {[%clk 0:02:52]} 11. Bxd6 {[%clk 0:03:00]}  Qxd6 {[%clk 0:02:53]} 12. Qc2 {[%clk 0:03:00]}  O-O {[%clk 0:02:51]} 13. h3 {[%clk 0:03:00]}  Rfc8 {[%clk 0:02:48]} 14. Rfc1 {[%clk 0:02:53]}  g6 {[%clk 0:02:43]} 15. Na4 {[%clk 0:02:53]}  Ne8 {[%clk 0:02:27]} 16. Rab1 {[%clk 0:02:45]}  Ng7 {[%clk 0:02:25]} 17. b4 {[%clk 0:02:44]}  Bf5 {[%clk 0:02:19]} 18. Nc5 {[%clk 0:02:44]}  Bxd3 {[%clk 0:02:16]} 19. Qxd3 {[%clk 0:02:45]}  Rab8 {[%clk 0:02:15]} 20. a4 {[%clk 0:02:45]}  Ne6 {[%clk 0:02:11]} 21. Qb3 {[%clk 0:02:32]}  Rc7 {[%clk 0:01:57]} 22. Ne1 {[%clk 0:02:28]}  Nb6 {[%clk 0:01:48]} 23. Ned3 {[%clk 0:02:03]}  Nc4 {[%clk 0:01:40]} 24. Rc2 {[%clk 0:02:02]}  Ng7 {[%clk 0:01:20]} 25. Ra1 {[%clk 0:01:53]}  Ra8 {[%clk 0:01:12]} 26. Rxc4 {[%clk 0:01:37]}  dxc4 {[%clk 0:01:11]} 27. Qxc4 {[%clk 0:01:38]}  Qd5 {[%clk 0:01:08]} 28. Qc3 {[%clk 0:01:29]}  b6 {[%clk 0:00:57]} 29. Nf4 {[%clk 0:01:28]}  Qd6 {[%clk 0:00:47]} 30. Nb3 {[%clk 0:01:25]}  Ne6 {[%clk 0:00:43]} 31. Nd3 {[%clk 0:01:23]}  h5 {[%clk 0:00:30]} 32. Qb2 {[%clk 0:01:16]}  Qd5 {[%clk 0:00:29]} 33. Rc1 {[%clk 0:01:13]}  Rb8 {[%clk 0:00:25]} 34. Qc3 {[%clk 0:01:11]}  Kh7 {[%clk 0:00:24]} 35. a5 {[%clk 0:01:10]}  bxa5 {[%clk 0:00:22]} 36. Nxa5 {[%clk 0:01:10]}  Ng5 {[%clk 0:00:20]} 37. Qe1 {[%clk 0:01:00]}  Ne4 {[%clk 0:00:16]} 38. f3 {[%clk 0:00:59]}  Nd6 {[%clk 0:00:14]} 39. Rc5 {[%clk 0:00:57]}  Qe6 {[%clk 0:00:14]} 40. e4 {[%clk 0:00:54]}  Nb5 {[%clk 0:00:13]} 41. d5 {[%clk 0:00:53]}  cxd5 {[%clk 0:00:12]} 42. Rxd5 {[%clk 0:00:25]}  Rd7 {[%clk 0:00:11]} 43. Nc5 {[%clk 0:00:24]}  Qxd5 {[%clk 0:00:06]} 44. exd5 {[%clk 0:00:24]}  Rxd5 {[%clk 0:00:07]} 45. Nc6 {[%clk 0:00:24]}  Rc8 {[%clk 0:00:05]} 46. Na5 {[%clk 0:00:17]}  Rc7 {[%clk 0:00:04]} 47. Kh2 {[%clk 0:00:18]}  Rf5 {[%clk 0:00:04]} 48. Nc4 {[%clk 0:00:17]}  Nd4 {[%clk 0:00:01]} 49. Ne3 {[%clk 0:00:15]}  Rf6 {[%clk 0:00:01]} 50. Ne4 {[%clk 0:00:15]}  Rxf3 {[%clk 0:00:01]} 51. Ng5+ {[%clk 0:00:15]}  Kg7 {[%clk 0:00:02]} 52. Nxf3 {[%clk 0:00:16]}  Nxf3+ {[%clk 0:00:02]} 53. gxf3 {[%clk 0:00:17]}  Re7 {[%clk 0:00:01]} 54. Qc3+ {[%clk 0:00:17]} 1-0


[Site "https://www.chess.com"]

[Event "Titled Tuesday Blitz May 30 Early 2023"]
[White "Hakobyan, Aram"]
[Black "Fiorito, Francisco"]
[WhiteFideId "13306677"]
[BlackFideId "180165"]
[WhiteElo "2584"]
[BlackElo "2341"]
[Result "1-0"]
[Round "04"]
[TimeControl "180+2"]
[Date "2023.05.30"]
[WhiteClock "0:01:53"]
[BlackClock "0:00:00"]

1. e4 {[%clk 0:03:00]}  e5 {[%clk 0:02:57]} 2. Nf3 {[%clk 0:03:01]}  Nf6 {[%clk 0:02:57]} 3. Nc3 {[%clk 0:03:02]}  Nc6 {[%clk 0:02:57]} 4. Nd5 {[%clk 0:03:02]}  Bc5 {[%clk 0:02:34]} 5. c3 {[%clk 0:03:02]}  Be7 {[%clk 0:01:08]} 6. d4 {[%clk 0:02:56]}  d6 {[%clk 0:01:06]} 7. Bd3 {[%clk 0:02:51]}  h6 {[%clk 0:01:03]} 8. O-O {[%clk 0:02:50]}  O-O {[%clk 0:01:03]} 9. Nxe7+ {[%clk 0:02:48]}  Qxe7 {[%clk 0:01:03]} 10. Re1 {[%clk 0:02:47]}  Rd8 {[%clk 0:01:02]} 11. h3 {[%clk 0:02:47]}  a6 {[%clk 0:01:00]} 12. Bd2 {[%clk 0:02:44]}  b5 {[%clk 0:00:45]} 13. Qc2 {[%clk 0:02:43]}  Bb7 {[%clk 0:00:45]} 14. Rad1 {[%clk 0:02:43]}  Na5 {[%clk 0:00:41]} 15. b3 {[%clk 0:02:42]}  c5 {[%clk 0:00:31]} 16. d5 {[%clk 0:02:22]}  Rac8 {[%clk 0:00:20]} 17. c4 {[%clk 0:02:20]}  b4 {[%clk 0:00:15]} 18. a3 {[%clk 0:02:21]}  Qc7 {[%clk 0:00:14]} 19. axb4 {[%clk 0:02:20]}  cxb4 {[%clk 0:00:14]} 20. Bxb4 {[%clk 0:02:21]}  Ba8 {[%clk 0:00:14]} 21. Ra1 {[%clk 0:02:20]}  Nb7 {[%clk 0:00:14]} 22. Rxa6 {[%clk 0:02:20]}  Nc5 {[%clk 0:00:15]} 23. Bxc5 {[%clk 0:02:20]}  Qxc5 {[%clk 0:00:16]} 24. Qd2 {[%clk 0:02:15]}  Rb8 {[%clk 0:00:15]} 25. Rea1 {[%clk 0:02:14]}  Bb7 {[%clk 0:00:13]} 26. b4 {[%clk 0:02:12]}  Qc7 {[%clk 0:00:11]} 27. R6a5 {[%clk 0:02:12]}  Nd7 {[%clk 0:00:11]} 28. Nh4 {[%clk 0:02:07]}  Ra8 {[%clk 0:00:09]} 29. Nf5 {[%clk 0:02:07]}  Rxa5 {[%clk 0:00:08]} 30. Rxa5 {[%clk 0:02:08]}  Ra8 {[%clk 0:00:07]} 31. Rxa8+ {[%clk 0:02:09]}  Bxa8 {[%clk 0:00:08]} 32. Qe3 {[%clk 0:02:08]}  Kh7 {[%clk 0:00:06]} 33. g4 {[%clk 0:01:55]}  Nf8 {[%clk 0:00:00]} 34. c5 {[%clk 0:01:53]} 1-0


[Site "https://www.chess.com"]